Cogmind - Beta 15 @@@ ROGUE MODE // 2025.10.11 @ 22:45:26 Player: microsand Result: Destroyed by P-60 Hacker with Shock Rifle Performance ------------- Evolutions (4) 2000 Regions Visited (12) 2400 Robots Destroyed (38) 190 Value Destroyed (887) 887 Prototype IDs (24) 480 Alien Tech Used (0) 0 Bonus (800) 800 TOTAL SCORE: 6757 Bonus ------- Entered DSFs 500 Aligned with FarCom 300 Cogmind --------- Core Integrity 0/850 Matter 269/300 Energy 98/100 System Corruption 18% Temperature Cool (0) Movement Core (50) Location -6/Lower Caves Parts ------- > --- POWER (1) -------- (None) > --- PROPULSION (3) --- (None) > --- UTILITY (9) ------ System Guard > --- WEAPON (2) ------- (None) > --- INVENTORY (5) ---- Advanced Targeting Computer Hacking Suite Hacking Suite Datajack Mining Laser Peak State ------------ > --- POWER ------------ (None) > --- PROPULSION ------- Improved Titanium Leg Improved Titanium Leg Improved Titanium Leg > --- UTILITY ---------- Lightpack 2.0 Gravity Neutralizer Signal Interpreter System Guard > --- WEAPON ----------- (None) > --- INVENTORY -------- IFF Parser Advanced Targeting Computer Hacking Suite Hacking Suite Hacking Suite Hacking Suite Makeshift Hacking Suite Component Analysis Suite System Guard Grenade Launcher Rocket Launcher Heavy Rocket Launcher Datajack Mining Laser [Rating: 58] Favorites ----------- Power Ion Engine Engine Ion Engine Propulsion Aluminum Leg Leg Aluminum Leg Hover Unit Gravmag System Utility Large Storage Unit Device Seismic Detector Storage Large Storage Unit Processor Signal Interpreter Protection Hardened Medium Armor Plating Weapon Heavy Assault Rifle Ballistic Gun Heavy Assault Rifle Launcher Heavy Rocket Launcher Special Weapon Mining Laser Build | -11 -10 -10 -10 -9 -8 -7 -7 -6 -6 -6 -6 -6 ------- Run | Yrd Mat Min Exi Min Mat Fac DSF Fac Was Fac Low Low Slots Evolved 8 | . . . . . 4 2 . 2 . . . . Power . | . . . . . . . . . . . . . Propulsion 1 | . . . . . 1 . . . . . . . Utility 7 | . . . . . 3 2 . 2 . . . . Weapon . | . . . . . . . . . . . . . Parts Attached 28 | 7 4 . . . 5 . 1 1 . 10 . . Power 1 | 1 . . . . . . . . . . . . Engine 1 | 1 . . . . . . . . . . . . Core . | . . . . . . . . . . . . . Reactor . | . . . . . . . . . . . . . Propulsion 9 | 2 . . . . 2 . . 1 . 4 . . Treads . | . . . . . . . . . . . . . Leg 8 | 2 . . . . 2 . . 1 . 3 . . Wheel . | . . . . . . . . . . . . . Hover 1 | . . . . . . . . . . 1 . . Flight . | . . . . . . . . . . . . . Utility 10 | 2 1 . . . 3 . 1 . . 3 . . Device 2 | 1 . . . . . . . . . 1 . . Storage 3 | 1 1 . . . 1 . . . . . . . Processor 3 | . . . . . 2 . . . . 1 . . Hackware . | . . . . . . . . . . . . . Protection 2 | . . . . . . . 1 . . 1 . . Artifact . | . . . . . . . . . . . . . Weapon 8 | 2 3 . . . . . . . . 3 . . Energy Gun . | . . . . . . . . . . . . . Energy Cannon . | . . . . . . . . . . . . . Ballistic Gun 4 | 2 2 . . . . . . . . . . . Ballistic Cannon . | . . . . . . . . . . . . . Launcher 3 | . . . . . . . . . . 3 . . Special Weapon 1 | . 1 . . . . . . . . . . . Impact Weapon . | . . . . . . . . . . . . . Slashing Weapon . | . . . . . . . . . . . . . Piercing Weapon . | . . . . . . . . . . . . . Special Melee Weapon . | . . . . . . . . . . . . . Unidentified Prototypes 1 | . . . . . . . . . . 1 . . Parts Lost 17 | . 1 1 . . 1 . 5 . 1 6 2 . Power 1 | . . . . . . . 1 . . . . . Propulsion 7 | . 1 . . . 1 . 1 . 1 3 . . Utility 4 | . . 1 . . . . 1 . . . 2 . Weapon 5 | . . . . . . . 2 . . 3 . . Highest Loss Streak 6 | . 1 1 . . 1 . 3 . 1 6 1 . To Critical Strikes . | . . . . . . . . . . . . . Average Backups 6 | 1 4 5 7 7 7 8 8 10 11 13 5 5 Power . | . . . . . . . . . . . . . Propulsion . | . . . . . . 1 1 . . . . . Utility 2 | . 1 2 2 3 2 3 3 5 6 8 3 3 Weapon 2 | . 1 2 3 3 3 3 3 4 4 3 1 1 Tool/Special . | . . . . . . . . . . . . . Unused Backups 14 | . 2 . . . . . . . . 1 7 4 Power . | . . . . . . . . . . . . . Propulsion 2 | . 2 . . . . . . . . . . . Utility 11 | . . . . . . . . . . 1 7 3 Weapon . | . . . . . . . . . . . . . Tool/Special 1 | . . . . . . . . . . . . 1 Average Slot Usage (%) 62 | . 92 71 42 49 67 61 49 33 23 31 9 6 Engine 10 | . 14 14 14 14 9 7 2 . . . . . Leg 15 | . 20 14 14 14 18 15 14 13 5 11 . . Device 5 | . 14 . . . . . . . . . . . Storage 11 | . 14 14 14 14 9 7 7 6 6 6 . . Processor 3 | . . . . . 12 15 15 13 10 10 9 6 Ballistic Gun 15 | . 27 28 . 7 18 15 5 . . . . . Peak Build Rating 58 | 7 10 8 7 11 46 46 46 42 42 58 40 6 Average Rating 16 | 4 8 7 5 8 44 46 44 42 37 46 7 6 On Entrance 22 | . 7 8 7 7 11 46 46 39 42 33 40 6 Naked Turns . | . . . . . . . . . . . . . Heaviest Build 32 | 14 32 31 31 31 16 16 16 5 5 12 5 . Greatest Support 60 | 20 20 10 10 10 37 27 27 27 27 60 3 3 Greatest Overweight (x) 3 | . 3 3 3 3 1 . . . 1 3 1 . Average Overweight (x) . | . 1 3 2 2 . . . . . . . . Largest Inventory Capacity 40 | 8 15 15 15 15 40 40 40 40 40 40 40 5 Average Capacity 20 | 5 13 15 15 15 40 40 40 40 40 40 6 5 Most Carried 16 | 4 8 5 10 11 9 8 11 11 11 16 12 5 Average Carried 7 | 1 4 5 8 9 7 8 8 10 11 13 5 5 Final Capacity 40 | 8 15 15 15 15 40 40 40 40 40 40 5 5 Final Carried 12 | 2 5 5 10 10 8 8 11 11 11 12 5 5 Class Distribution -------------------- 74% | Mutant 25% | Hauler-Mutant Dominant Class ---------------- Mutant | -10/Materials Mutant | -10/Mines Mutant | -10/Exiles Mutant | -9/Mines Hauler-Mutant | -8/Materials Hauler-Mutant | -7/Factory Hauler-Mutant | -7/DSF Hauler-Mutant | -6/Factory Hauler-Mutant | -6/Waste Hauler-Mutant | -6/Factory Mutant | -6/Lower Caves Mutant | -6/Lower Caves Resources | -11 -10 -10 -10 -9 -8 -7 -7 -6 -6 -6 -6 -6 ----------- Run | Yrd Mat Min Exi Min Mat Fac DSF Fac Was Fac Low Low Matter Collected 1076 | 192 445 53 . 98 119 . . . . . 117 52 Remotely . | . . . . . . . . . . . . . Salvage Created 1055 | 40 556 53 . 27 131 . . . . 248 . . Parts 72 | 5 43 8 . . 8 . . . . 8 . . Haulers Intercepted 1 | . 1 . . . . . . . . . . . Recyclers Shooed 1 | . . . . 1 . . . . . . . . Parts Field Recycled . | . . . . . . . . . . . . . Retrieved Matter . | . . . . . . . . . . . . . Parts Self-Destructed 1 | . . . . . . . . . . . 1 . Prevented . | . . . . . . . . . . . . . Kills | -11 -10 -10 -10 -9 -8 -7 -7 -6 -6 -6 -6 -6 ------- Run | Yrd Mat Min Exi Min Mat Fac DSF Fac Was Fac Low Low Combat Hostiles Destroyed 27 | . 11 3 . 2 6 . . . . 5 . . Guns 22 | . 11 3 . 2 6 . . . . . . . AOE 5 | . . . . . . . . . . 5 . . Classes Destroyed 11 | 1 6 . . 1 1 . . . . 2 . . Worker 2 | . . . . . . . . . . 2 . . Builder 1 | . . . . . . . . . . 1 . . Tunneler 2 | 2 . . . . . . . . . . . . Hauler 1 | . 1 . . . . . . . . . . . Recycler 1 | . 1 . . . . . . . . . . . Operator 2 | . 2 . . . . . . . . . . . Watcher 4 | . 3 . . . . . . . . 1 . . Swarmer 11 | . 3 3 . . 5 . . . . . . . Grunt 13 | . 8 . . . . . . . . 5 . . Sentry 1 | . . . . . 1 . . . . . . . Assembled 2 | . . . . 2 . . . . . . . . Best Kill Streak 6 | 2 4 3 . 2 3 . . . . 6 . . Combat Bots Only 5 | . 3 3 . 2 3 . . . . 5 . . Max Kills in Single Turn 3 | 1 1 2 . 1 1 . . . . 3 . . Gunslinging . | . . . . . . . . . . . . . Exploded 3 | . . . . . . . . . . 3 . . Melee . | . . . . . . . . . . . . . Uniques/NPCs Destroyed . | . . . . . . . . . . . . . Combat | -11 -10 -10 -10 -9 -8 -7 -7 -6 -6 -6 -6 -6 -------- Run | Yrd Mat Min Exi Min Mat Fac DSF Fac Was Fac Low Low Hostile Shots Fired 337 | . 30 11 . 2 21 . 32 . 5 158 73 5 Missed 143 | . 9 4 . 1 8 . 11 . . 73 37 . Hits 194 | . 21 7 . 1 13 . 21 . 5 85 36 5 Melee 5 | . . . . . . . . . 5 . . . Projectile 189 | . 21 7 . 1 13 . 21 . . 85 36 5 Critical Strikes 6 | . . . . . . . 1 . 4 1 . . Damage Taken 3347 | . 591 49 . 11 123 . 512 . 198 1340 440 83 Core 1138 | . 195 6 . 11 10 . 62 . 127 267 377 83 Absorbed by Shields . | . . . . . . . . . . . . . Core Remaining (%) 76 | 100 . . . 15 98 . 91 . . . . . Volleys Fired 81 | 3 51 5 . 3 12 . . . . 7 . . Largest 2 | 2 2 2 . 2 2 . . . . 2 . . Hottest 100 | 40 100 46 . 46 46 . . . . 63 . . Shots Fired 151 | 6 96 11 . 6 24 . . . . 8 . . Gun 136 | 6 89 11 . 6 24 . . . . . . . Cannon . | . . . . . . . . . . . . . Launcher 8 | . . . . . . . . . . 8 . . Special 7 | . 7 . . . . . . . . . . . Kinetic 136 | 6 89 11 . 6 24 . . . . . . . Thermal 7 | . 7 . . . . . . . . . . . Explosive 8 | . . . . . . . . . . 8 . . Electromagnetic . | . . . . . . . . . . . . . Robot Hit Streak 6 | 1 6 2 . 2 4 . . . . 2 . . Robot Miss Streak 6 | 2 6 4 . 2 4 . . . . 2 . . Penetration Max . | . . . . . . . . . . . . . Secondary Targets 1 | . 1 . . . . . . . . . . . Max Gunslinging Chain 1 | . 1 . . . . . . . . . . . Shots Hit Robots 64 | 2 43 3 . 4 10 . . . . 2 . . Core Hits 64 | 2 25 3 . 4 7 . . . . 23 . . Critical Kills . | . . . . . . . . . . . . . Critical Parts Destroyed . | . . . . . . . . . . . . . Critical Strikes . | . . . . . . . . . . . . . Melee Attacks . | . . . . . . . . . . . . . Impact . | . . . . . . . . . . . . . Slashing . | . . . . . . . . . . . . . Piercing . | . . . . . . . . . . . . . Sneak Attacks . | . . . . . . . . . . . . . Combat Hostiles . | . . . . . . . . . . . . . Follow-up Attacks . | . . . . . . . . . . . . . Damage Inflicted 1945 | 25 666 59 . 66 157 . . . . 972 . . Guns 947 | 25 646 59 . 64 153 . . . . . . . Cannons . | . . . . . . . . . . . . . Explosions 972 | . . . . . . . . . . 972 . . Melee . | . . . . . . . . . . . . . Ramming 26 | . 20 . . 2 4 . . . . . . . Kinetic 947 | 25 646 59 . 64 153 . . . . . . . Thermal 86 | . . . . . . . . . . 86 . . Explosive 886 | . . . . . . . . . . 886 . . Electromagnetic . | . . . . . . . . . . . . . Impact . | . . . . . . . . . . . . . Slashing . | . . . . . . . . . . . . . Piercing . | . . . . . . . . . . . . . Highest Corruption 18 | . 3 3 3 3 . . 2 . 10 17 17 18 Average Corruption 5 | . 3 3 3 3 . . 1 . 10 12 17 17 Corruption Purged . | . . . . . . . . . . . . . Corruption Blocked . | . . . . . . . . . . . . . Effects 88 | . 18 6 8 14 . . . . 4 24 11 3 Message Errors 26 | . 3 1 3 6 . . . . . 6 4 3 Matter Fused 18 | . 6 2 2 3 . . . . 2 3 . . Heat Flow Errors 8 | . 2 . . 1 . . . . . 3 2 . Energy Discharges 8 | . 2 . 1 1 . . . . 1 2 1 . Parts Fused 1 | . . . 1 . . . . . . . . . Data Loss (minor) 13 | . 4 1 1 2 . . . . . 5 . . Data Loss (major) 3 | . . . . 1 . . . . . . 2 . Misfires 3 | . 1 1 . . . . . . . 1 . . Alerts 2 | . . 1 . . . . . . . 1 . . Misdirections 5 | . . . . . . . . . 1 2 2 . Weapon Failures 1 | . . . . . . . . . . 1 . . Overload Shots . | . . . . . . . . . . . . . Overflow Damage 42 | . . . . . . . . . . 42 . . Projectiles . | . . . . . . . . . . . . . Explosions 42 | . . . . . . . . . . 42 . . Melee . | . . . . . . . . . . . . . Knockbacks . | . . . . . . . . . . . . . Impact . | . . . . . . . . . . . . . Kinetic . | . . . . . . . . . . . . . Secondary . | . . . . . . . . . . . . . Self-Inflicted Damage . | . . . . . . . . . . . . . Shots . | . . . . . . . . . . . . . Rammed . | . . . . . . . . . . . . . Targets Rammed 10 | . 8 . . 1 1 . . . . . . . Kicked 10 | . 8 . . 1 1 . . . . . . . Crushed . | . . . . . . . . . . . . . Highest Temperature 154 | . 111 . . 130 . . . . . 148 154 . Average Temperature 34 | . 17 . . 70 . . . . . 72 74 . Received Heat Transfer 437 | . 108 . . 20 18 . . . . 231 42 18 Siege Activations . | . . . . . . . . . . . . . Martial Activations . | . . . . . . . . . . . . . Shielding Activations . | . . . . . . . . . . . . . Robots Disrupted . | . . . . . . . . . . . . . Combat Hostiles . | . . . . . . . . . . . . . Robots Corrupted . | . . . . . . . . . . . . . Combat Hostiles . | . . . . . . . . . . . . . Parts Fried . | . . . . . . . . . . . . . Impact Corruptions . | . . . . . . . . . . . . . Robots Melted . | . . . . . . . . . . . . . Combat Hostiles . | . . . . . . . . . . . . . Parts Melted . | . . . . . . . . . . . . . Heat Transferred 50 | . . . . . . . . . . 50 . . Parts Sabotaged . | . . . . . . . . . . . . . Parts Stolen . | . . . . . . . . . . . . . Parts Stripped . | . . . . . . . . . . . . . Power Chain Reactions . | . . . . . . . . . . . . . Alert | -11 -10 -10 -10 -9 -8 -7 -7 -6 -6 -6 -6 -6 ------- Run | Yrd Mat Min Exi Min Mat Fac DSF Fac Was Fac Low Low Maximum Alert Level 1 | . . . . . . . . . . 1 . . Low Security (%) 99 | 100 100 100 . 100 100 100 100 100 100 99 . . Level 1 . | . . . . . . . . . . . . . Level 2 . | . . . . . . . . . . . . . Level 3 . | . . . . . . . . . . . . . Level 4 . | . . . . . . . . . . . . . Level 5 . | . . . . . . . . . . . . . High Security . | . . . . . . . . . . . . . Max Security . | . . . . . . . . . . . . . Peak Influence 212 | 5 147 70 . . 82 5 30 4 15 212 . . Initial 4 | . . . . . . . 3 4 . . . . Average 16 | . 22 11 . . 22 . 12 2 . 23 . . Influence Increases 1049 | 10 346 70 . . 180 5 30 . 15 258 90 45 Destroy 0b10 Robot/C 500 | . 220 60 . . 120 . . . . 100 . . Destroy 0b10 Robot/NC 65 | 10 35 . . . . . . . . 20 . . Destroy Leader 100 | . 58 10 . . 20 . . . . 12 . . Successful Hack 39 | . 26 . . . 8 5 . . . . . . Disable Machine 75 | . . . . . . . . . . 75 . . Destroy Structure 60 | . 7 . . . 2 . . . . 51 . . Partial Spotted 15 | . . . . . . . . . 15 . . . Lose Combat Pursuer 195 | . . . . . 30 . 30 . . . 90 45 Influence Decreases 986 | 10 346 70 . . 180 . 25 10 15 82 206 42 Entered New Map 86 | . . . . . . . 2 6 . . 66 12 Time Decay 732 | 10 338 70 . . 128 . . 4 . 32 120 30 Lost Part 101 | . 8 . . . . . 23 . . 50 20 . Lost Ally 15 | . . . . . . . . . 15 . . . Purge Threat 52 | . . . . . 52 . . . . . . . Squads Dispatched 9 | . 2 . . . . . 1 . . 6 . . Investigation . | . . . . . . . . . . . . . Extermination 1 | . . . . . . . . . . 1 . . Reinforcement 5 | . 2 . . . . . 1 . . 2 . . Assault . | . . . . . . . . . . . . . Garrison 3 | . . . . . . . . . . 3 . . Intercept . | . . . . . . . . . . . . . Searches Triggered . | . . . . . . . . . . . . . Construction Impeded 1 | . . . . . . . . . . 1 . . Haulers Reinforced . | . . . . . . . . . . . . . Active Scanning Responses . | . . . . . . . . . . . . . Cargo Convoy Interrupts . | . . . . . . . . . . . . . Stealth | -11 -10 -10 -10 -9 -8 -7 -7 -6 -6 -6 -6 -6 --------- Run | Yrd Mat Min Exi Min Mat Fac DSF Fac Was Fac Low Low Distress Signals 5 | . 2 . . 1 1 . . . . 1 . . Communications Jammed . | . . . . . . . . . . . . . Distress Signals . | . . . . . . . . . . . . . Times Spotted 64 | . 17 3 . 2 8 . 6 . 6 11 7 4 Peak Tracking Total 6 | . 6 3 . 1 5 . 5 . 6 5 6 4 Tactical Retreats 8 | . . . . . 1 . 2 . . . 3 2 Traps | -11 -10 -10 -10 -9 -8 -7 -7 -6 -6 -6 -6 -6 ------- Run | Yrd Mat Min Exi Min Mat Fac DSF Fac Was Fac Low Low Traps Triggered 5 | . . . . . . . 1 1 . 3 . . Indirectly . | . . . . . . . . . . . . . Trap Hack Attempts . | . . . . . . . . . . . . . Triggered . | . . . . . . . . . . . . . Disarmed . | . . . . . . . . . . . . . Reprogrammed . | . . . . . . . . . . . . . Reused . | . . . . . . . . . . . . . Traps Extracted . | . . . . . . . . . . . . . Installed . | . . . . . . . . . . . . . Triggered . | . . . . . . . . . . . . . Machines | -11 -10 -10 -10 -9 -8 -7 -7 -6 -6 -6 -6 -6 ---------- Run | Yrd Mat Min Exi Min Mat Fac DSF Fac Was Fac Low Low Machines Disabled 5 | . . . . . . . . . . 5 . . Max in Single Turn 4 | . . . . . . . . . . 4 . . Machines Repaired . | . . . . . . . . . . . . . Machines Dismantled . | . . . . . . . . . . . . . Machines Sabotaged . | . . . . . . . . . . . . . Overloaded Fab Kills . | . . . . . . . . . . . . . Hacking | -11 -10 -10 -10 -9 -8 -7 -7 -6 -6 -6 -6 -6 --------- Run | Yrd Mat Min Exi Min Mat Fac DSF Fac Was Fac Low Low Machines Accessed 10 | . 3 . 2 . 3 1 . . . . 1 . Terminals 7 | . 3 . . . 3 1 . . . . . . Fabricators . | . . . . . . . . . . . . . Repair Stations . | . . . . . . . . . . . . . Recycling Units . | . . . . . . . . . . . . . Scanalyzers . | . . . . . . . . . . . . . Garrison Access . | . . . . . . . . . . . . . Total Hacks 18 | . 5 . 5 . 6 1 . . . . 1 . Successful 15 | . 4 . 5 . 4 1 . . . . 1 . Failed 3 | . 1 . . . 2 . . . . . . . Catastrophic . | . . . . . . . . . . . . . Database Lockouts . | . . . . . . . . . . . . . Manual 11 | . 4 . 1 . 6 . . . . . . . Terminals 12 | . 5 . . . 6 1 . . . . . . Fabricators . | . . . . . . . . . . . . . Repair Stations . | . . . . . . . . . . . . . Recycling Units . | . . . . . . . . . . . . . Scanalyzers . | . . . . . . . . . . . . . Garrison Access . | . . . . . . . . . . . . . Terminal Hacks 12 | . 2 . 5 . 3 1 . . . . 1 . Record 4 | . . . 4 . . . . . . . . . Robot Analysis 1 | . 1 . . . . . . . . . . . Open Door 1 | . . . . . . . . . . . 1 . Open DSF 1 | . . . . . . 1 . . . . . . Branch Access Points 2 | . 1 . . . 1 . . . . . . . Unreport Threat 2 | . . . . . 2 . . . . . . . Proto ID Catalog 1 | . . . 1 . . . . . . . . . Fabricator Hacks . | . . . . . . . . . . . . . Repair Station Hacks . | . . . . . . . . . . . . . Recycling Unit Hacks . | . . . . . . . . . . . . . Scanalyzer . | . . . . . . . . . . . . . Garrison Access Hacks . | . . . . . . . . . . . . . Unauthorized Hacks 3 | . 2 . . . 1 . . . . . . . Terminals 3 | . 2 . . . 1 . . . . . . . Botnet 2 | . 1 . . . 1 . . . . . . . Operators 1 | . 1 . . . . . . . . . . . Fabricators . | . . . . . . . . . . . . . Repair Stations . | . . . . . . . . . . . . . Recycling Units . | . . . . . . . . . . . . . Scanalyzers . | . . . . . . . . . . . . . Garrison Access . | . . . . . . . . . . . . . Data Cores Recovered . | . . . . . . . . . . . . . Used . | . . . . . . . . . . . . . Hacking Detections 5 | . 3 . . . 2 . . . . . . . Full Trace Events . | . . . . . . . . . . . . . Feedback Events . | . . . . . . . . . . . . . Feedback Blocked . | . . . . . . . . . . . . . Robot Schematics Acquired . | . . . . . . . . . . . . . Robots Built . | . . . . . . . . . . . . . Authchips . | . . . . . . . . . . . . . Time . | . . . . . . . . . . . . . Total Robot Build Rating . | . . . . . . . . . . . . . Part Schematics Acquired . | . . . . . . . . . . . . . Parts Built . | . . . . . . . . . . . . . Authchips . | . . . . . . . . . . . . . Time . | . . . . . . . . . . . . . Total Part Build Rating . | . . . . . . . . . . . . . Parts Repaired . | . . . . . . . . . . . . . Time . | . . . . . . . . . . . . . Parts Recycled . | . . . . . . . . . . . . . Recycled Matter . | . . . . . . . . . . . . . Retrieved Matter . | . . . . . . . . . . . . . Retrieved Components . | . . . . . . . . . . . . . Parts Scanalyzed . | . . . . . . . . . . . . . Part Schematics Acquired . | . . . . . . . . . . . . . Parts Damaged . | . . . . . . . . . . . . . Bothacking | -11 -10 -10 -10 -9 -8 -7 -7 -6 -6 -6 -6 -6 ------------ Run | Yrd Mat Min Exi Min Mat Fac DSF Fac Was Fac Low Low Used RIF Installer . | . . . . . . . . . . . . . Robots Hacked . | . . . . . . . . . . . . . Non-combat . | . . . . . . . . . . . . . Combat . | . . . . . . . . . . . . . Robot Hacks Applied . | . . . . . . . . . . . . . Relay Couplers Released . | . . . . . . . . . . . . . Fabnet Peak Effective % . | . . . . . . . . . . . . . Robots Rewired . | . . . . . . . . . . . . . Allies Hacked . | . . . . . . . . . . . . . Hacks Repelled . | . . . . . . . . . . . . . Allies | -11 -10 -10 -10 -9 -8 -7 -7 -6 -6 -6 -6 -6 -------- Run | Yrd Mat Min Exi Min Mat Fac DSF Fac Was Fac Low Low Total Allies 1 | . . . . . . . . . 1 . . . Largest Group 1 | . . . . . . . . . 1 . . . Highest-Rated Group 31 | . . . . . . . . . 31 . . . Highest-Rated Ally 31 | . . . . . . . . . 31 . . . Total Orders . | . . . . . . . . . . . . . Ally Attacks 3 | . . . . . . . . . 3 . . . Total Damage 64 | . . . . . . . . . 64 . . . Kills . | . . . . . . . . . . . . . Allies Corrupted . | . . . . . . . . . . . . . Allies Melted . | . . . . . . . . . . . . . Intel | -11 -10 -10 -10 -9 -8 -7 -7 -6 -6 -6 -6 -6 ------- Run | Yrd Mat Min Exi Min Mat Fac DSF Fac Was Fac Low Low Active Infowar (turns) 2059 | 17 2040 2 . . . . . . . . . . Seismic 2059 | 17 2040 2 . . . . . . . . . . Robot Analysis Total 1 | . 1 . . . . . . . . . . . Derelict Logs Recovered 3 | . . . . 1 . . . . . . 1 1 Drone Launches . | . . . . . . . . . . . . . Drone Recoveries . | . . . . . . . . . . . . . Exploration | -11 -10 -10 -10 -9 -8 -7 -7 -6 -6 -6 -6 -6 ------------- Run | Yrd Mat Min Exi Min Mat Fac DSF Fac Was Fac Low Low Turns Passed 5655 | 121 2040 429 606 733 569 19 123 37 90 577 242 69 Spaces Moved 3068 | 84 787 126 231 197 358 19 112 34 89 420 473 138 Core 751 | 8 . . . . . . . . 52 80 473 138 Treads . | . . . . . . . . . . . . . Legs 2094 | 76 787 126 231 197 358 19 112 34 37 117 . . Wheels . | . . . . . . . . . . . . . Hover 223 | . . . . . . . . . . 223 . . Flight . | . . . . . . . . . . . . . Fastest Speed 50 | 50 120 330 260 260 105 105 90 105 90 60 50 50 Average Speed 155 | 113 224 330 260 279 107 105 104 105 100 89 51 50 Slowest Speed 330 | 120 330 330 330 330 190 105 105 105 105 200 100 50 Overloaded Moves . | . . . . . . . . . . . . . Propulsion Burnouts . | . . . . . . . . . . . . . Robots Hopped . | . . . . . . . . . . . . . Potential Cave-ins 2 | . . . . . . . . . . 2 . . Cave-ins Triggered 1 | . 1 . . . . . . . . . . . Exploration Rate (%) 39 | 4 77 31 61 44 23 1 82 2 82 11 64 26 Regions Visited 12 Branch Regions 5 Pre-discovered Areas 4 | . . . 1 2 . . . . . . . 1 Known Exits Taken 3 | . 1 . . . 1 1 . . . . . . Unknown Exits Taken 6 | 1 . 1 1 1 . . . . . 1 1 . Scrap Searched 3 | . . . . 1 . . . . . . 1 1 Spaces Dug 17 | . 6 . . . . . . . . 11 . . Terrain Destroyed 71 | . 6 . . . . . . . . 65 . . Melee . | . . . . . . . . . . . . . Projectile 6 | . 6 . . . . . . . . . . . AOE 65 | . . . . . . . . . . 65 . . Terrain Rammed . | . . . . . . . . . . . . . Walls Destroyed . | . . . . . . . . . . . . . Machines Disabled . | . . . . . . . . . . . . . Actions | -11 -10 -10 -10 -9 -8 -7 -7 -6 -6 -6 -6 -6 --------- Run | Yrd Mat Min Exi Min Mat Fac DSF Fac Was Fac Low Low Total 3787 | 104 938 131 236 374 517 18 118 36 89 616 472 138 Wait 549 | 2 70 1 3 170 136 . 1 . 1 165 . . Move 3057 | 83 786 125 230 196 357 18 111 34 88 419 472 138 Hop . | . . . . . . . . . . . . . Pick Up 42 | 9 8 . 1 2 5 . 4 1 . 12 . . Fast Attach . | . . . . . . . . . . . . . Attach 27 | 7 1 . . 2 5 . 1 1 . 10 . . Detach 3 | . 1 . 2 . . . . . . . . . Swap 8 | . 8 . . . . . . . . . . . Drop 9 | . 5 . . . 1 . . . . 3 . . Fire 81 | 3 51 5 . 3 12 . . . . 7 . . Melee . | . . . . . . . . . . . . . Ram . | . . . . . . . . . . . . . Kick 10 | . 8 . . 1 1 . . . . . . . Crush . | . . . . . . . . . . . . . Escape Stasis . | . . . . . . . . . . . . . Rewire 1 | . . . . . . . 1 . . . . . Trap . | . . . . . . . . . . . . . Miscellaneous . | . . . . . . . . . . . . . Route ------- -11/Scrapyard -10/Materials (discovered 4 exits: [*Mat x2] / *Min x2) -10/Mines -10/Exiles -9/Mines -8/Materials -7/Factory -7/DSF -6/Factory -6/Waste -6/Factory -6/Lower Caves -6/Lower Caves History --------- Turn | Location | Event 45 | -11/Scrapyard | Discovered new exit (range 13) 122 | -11/Scrapyard | Entered Materials 307 | -10/Materials | Build established: Mutant 632 | -10/Materials | Discovered new exit (range 16) 634 | -10/Materials | Identified exit to Mines 1102 | -10/Materials | Crushed by falling debris 1102 | -10/Materials | Core integrity fell below 50% 1143 | -10/Materials | Discovered new exit (range 16) 2162 | -10/Materials | Entered Mines 2167 | -10/Mines | Core integrity fell below 20% 2250 | -10/Mines | Met a Derelict bent on vengeance 2455 | -10/Mines | Deemed a non-threat by the Exiles lab entrance 2458 | -10/Mines | Discovered new exit (range 5) 2535 | -10/Mines | Found a hidden stash of uninstalled traps 2591 | -10/Mines | Entered Exiles 2663 | -10/Exiles | Met 8R-AWN 2709 | -10/Exiles | Met EX-HEX 2790 | -10/Exiles | Met EX-BIN 2826 | -10/Exiles | Aligned with FarCom system 2829 | -10/Exiles | Given EX-Vault access code 2902 | -10/Exiles | Opened EX-Vault 2923 | -10/Exiles | Found Lightpack 2.0 2978 | -10/Exiles | Warned to stay clear of 0b10 Research branches 3008 | -10/Exiles | Exiles lab attacked by MAIN.C 3085 | -10/Exiles | Learned location of Zion (-7) 3165 | -10/Exiles | Discovered new exit (range 14) 3197 | -10/Exiles | Left Exiles lab with Lightpack 2.0 3197 | -10/Exiles | Entered Mines 3198 | -9/Mines | Learned location of Storage (-9) 3336 | -9/Mines | Assembled infested the area 3341 | -9/Mines | Assisted by a Guerilla fighting off Assembled 3857 | -9/Mines | Received a Rocket Launcher from a helpful Derelict 3921 | -9/Mines | Discovered new exit (range 3) 3930 | -9/Mines | Entered Materials 3930 | -8/Materials | Evolved 4 slots: Propulsion x1, Utility x3 4220 | -8/Materials | Build established: Hauler-Mutant 4487 | -8/Materials | Discovered new exit (range 12) 4498 | -8/Materials | Identified exit to Factory 4499 | -8/Materials | Entered Factory 4499 | -7/Factory | Evolved 2 slots: Utility x2 4516 | -7/Factory | Identified exit to DSF 4518 | -7/Factory | Entered DSF 4544 | -7/DSF | Additional patrols routed to DSF 4581 | -7/DSF | Lost 3 parts (1p2w) 4623 | -7/DSF | Discovered new exit (range 15) 4640 | -7/DSF | Identified exit to Factory 4641 | -7/DSF | Entered Factory 4641 | -6/Factory | Evolved 2 slots: Utility x2 4678 | -6/Factory | Sucked down chute 4678 | -6/Factory | Entered Waste 4679 | -6/Waste | Met a frightened Derelict 4690 | -6/Waste | Spotted C-40 Crusher 4693 | -6/Waste | EMP discharged 4693 | -6/Waste | System corruption reached 10% 4696 | -6/Waste | Spotted C-40 Crusher 4707 | -6/Waste | Crushed by Compactor (1 part destroyed) 4710 | -6/Waste | Spotted C-40 Crusher 4716 | -6/Waste | Crushed by Compactor (0 parts destroyed, 1 dropped) 4727 | -6/Waste | Spotted C-40 Crusher 4731 | -6/Waste | Spotted C-40 Crusher 4735 | -6/Waste | Crushed by Compactor (0 parts destroyed, 1 dropped) 4742 | -6/Waste | Spotted C-40 Crusher 4758 | -6/Waste | Discovered new exit (range 11) 4767 | -6/Waste | Identified exit to Factory 4768 | -6/Waste | Entered Factory 5332 | -6/Factory | Lost 6 parts (3n3w) 5333 | -6/Factory | Discovered new exit (range 12) 5345 | -6/Factory | Entered Lower Caves 5348 | -6/Lower Caves | Attracted the attention of an 0b10 checkpoint 5350 | -6/Lower Caves | Spotted B-75 Beast 5352 | -6/Lower Caves | Core integrity fell below 50% 5378 | -6/Lower Caves | Learned 8 Factory zone layouts 5477 | -6/Lower Caves | Core integrity fell below 20% 5486 | -6/Lower Caves | Encountered a Warlord checkpoint 5581 | -6/Lower Caves | Discovered new exit (range 13) 5587 | -6/Lower Caves | Entered another Lower Caves area 5604 | -6/Lower Caves | Encountered a Warlord checkpoint 5625 | -6/Lower Caves | Learned location of Extension (-4) 5647 | -6/Lower Caves | Build established: Mutant 5649 | -6/Lower Caves | Entered a destroyed Warlord outpost 5656 | -6/Lower Caves | Destroyed by P-60 Hacker with Shock Rifle Last Messages --------------- 05534_ Current location identified: Lower Caves >>Open Door Sealed Heavy Doors opened. 05558_ V:OYNO&T2&CA4J0A|4F S 05581_ EXIT=FOUND LOCATION=UNKNOWN GOAL=ESCAPE 05593_ Searching scrap... 05593_ Found Adv. Melee Analysis Suite. 05593_ Found 61 Matter. 05593_ Found 52 Matter. 05594_ Acquired 52 matter. 05595_ 3I:R9RWUZOY5P 05604_ 0Z-ZCH(M): "Unaware activity is slow around here lately. Bring on the action!" 05615_ ILK OHN/UG>1YWT LIK2 05625_ Acquired derelict log, extracted data. World map updated: -4/Extension. 05650_ U93V8JUYHRH4XW0BEVL7TQTYHD 05651_ WAR.Sys disabled. Map ----- +----------------------------------------------------+ | | | | | ?????????????????????????????????????????????????? | | ?????????????????????????????????????????????????? | | ?????????????????????????????????????????????????? | | ?????????????????????????????????????????????????? | | ?????????????????????????????????????????????????? | | ?????????????????????????????????????????????????? | | ?????????????????????????????????????????????????? | | ?????????????????????????????????????????????????? | | ?????????????????????????????????????????????????? | | ?????????????????????????????????????????????????? | | ?????????????????????????????????????????????????? | | ?????????????????????????????????????????????????? | | ?????????????????????????????????????????????????? | | ?????????????????????????????????????????????????? | | ?????????????????????????????????###??##?????????? | | ????????????????????????????????# ## ??????????# | | ??????????????????????????????## ?????????# | | ??????????????????????????????# ?????????## | | ?????????????????????#######??# ???????????# | | ?????????????????????# #?## #????????????## | | ??????????????????????# ### #?????????????# | | ???????????????????????# ###########????# | | ???????????????????????# ## ##??## | | ???????????????????????# @ p #??# | | ???????????????????????# #### #??# | | ???????????????????????# ## ## #X" # #??# # | | ???????????????????????##?## ## # #?## # | | ???????????????????????????# ### # ## ### # | | ???????????????????????????# #?##### "# # | | ??????????????????????????? #?????## "# # | | ??????????????????????????? #??????#! "# # | | ?????????????????????????? #?????? "# # | | ?????????????????????????? #????? ""# | | ?????????????????????????? ?????? "## ## | | ????????????????????????? ????? ### ###? | | ?????????????????????????# ????? ### ##??? | | ?????????????????????????## #???? ## #???? | | ??????????????????????????? ?????# ??? | | ???????????????????????????#?????## #### ? | | ??????????????????????????????????# ???### ## | | ?????????????????????????????????# ??????# ##? | | ?????????????????????????????????# ?????? ##?? | | ?????????????????????????????????# ??????? ##??? | | ????????????????????????????????? ??????? #???? | | ???????????????????????????????? ???????? #???? | | ??????????????????????????????? ????????? #???? | | ?????????????????????????????? #?????????? ????? | | ?????????????????????????????? #????????????????? | +----------------------------------------------------+ Best States ------------- Heat Dissipation 37 Energy Generation 10 Energy Capacity 250 Matter Stores 300 Matter Capacity 300 Sight Range 16 Terrain Scan Density 10 Corruption Containment 8 Armor Coverage 225 Evasion (%) 57 Targeting Accuracy 8 Item Schematics ----------------- None Robot Schematics ------------------ None Fabricated ------------ Nothing Repaired ---------- Nothing Alien Tech Used ----------------- None Achievements -------------- Maybe Next Time I'll Detach My Launcher Challenges ------------ None Game ------ Seed ThermicMyomerAmplifier Manual? 0 Play Time 00:28:28 Cumulative 18.7 hours Start 2025.10.11 @ 22:12:51 End 2025.10.11 @ 22:45:26 Sessions 1 Manual Loads 0 Difficulty Rogue Special Mode None Game No. 54 Rogue 54 Adventurer 0 Explorer 0 Win Type - Total 0 Types 0/0/0/0/0/0/0/0/0/0 Lore% 31 Gallery% 26 Achievement% 28 Wizard Run 0 Options --------- Layout 1 ASCII 0 Keyboard 0 Movement Numpad Keybinds 0 Fullscreen 1 Font 24/Smallcaps Map View 50x35 Zoom Use 0% Tactical HUD 1 Map Filters NONE Filters NONE Steam 1 RUN: 85878dff-226f-4f64-9d95-7e49618439eb